[Event "FRA-ch Open A-D 2018"]
[Site "Nimes"]
[Date "2018.08.21"]
[Round "4"]
[White "Cassam-Chenai, Eric"]
[Black "Verhille, Elie"]
[Result "1-0"]
[ECO "C02"]
[WhiteElo "1914"]
[BlackElo "1862"]
[Annotator "NA RC"]
[PlyCount "91"]
[EventDate "2018.08.18"]
[EventType "tourn"]
[EventCountry "FRA"]
[SourceTitle "playchess.com"]
[Source "ChessBase"]
[SourceQuality "1"]
[TimeControl "40/5400+30:1800+30"]

1. e4 {[%emt 0:00:00]} e6 {[%emt 0:00:00]} 2. d4 {[%emt 0:00:00]} d5 {[%emt 0:00:00]} 3. e5 {[%emt 0:00:00]} c5 {[%emt 0:00:00]} 4. c3 {[%emt 0:00:00]} Bd7 {[%emt 0:00:00]} 5. Nf3 {[%emt 0:00:00]} Qb6 {[%emt 0:00:15]} 6. Bd3 {[%emt 0:06:09]} Bb5 {[%emt 0:01:09]} 7. dxc5 {[%emt 0:00:55]} Bxc5 {[%emt 0:00:45]} 8. b4 {[%emt 0:00:13]} Bxf2+ {[%emt 0:40:05]} 9. Ke2 {[%emt 0:00:22]} Bxd3+ {[%emt 0:03:12]} 10. Qxd3 {[%emt 0:00:10]} f6 {[%emt 0:01:06]} 11. Rf1 {[%emt 0:01:01]} fxe5 {[%emt 0:05:26]} 12. Nxe5 {[%emt 0:05:27]} Qc7 {[%emt 0:08:15]} 13. Bf4 {[%emt 0:04:15]} g5 {[%emt 0:03:26]} 14. Bg3 {[%emt 0:13:37]} Bxg3 {[%emt 0:03:41]} 15. Qxg3 {[%emt 0:00:47]} Nh6 {[%emt 0:21:22]} 16. Rf6 {[%emt 0:04:51]} Qg7 {[%emt 0:06:46]} 17. Rxe6+ {[%emt 0:00:21]} Kd8 {[%emt 0:00:13]} 18. Qd3 {[%emt 0:12:12]} Re8 {[%emt 0:02:12]} 19. Qxd5+ {[%emt 0:00:38]} Nd7 {[%emt 0:00:18]} 20. Nxd7 {[%emt 0:16:15]} Qxd7 {[%emt 0:00:29]} 21. Qxg5+ {[%emt 0:01:01]} Re7 {[%emt 0:00:01]} 22. Qxe7+ {[%emt 0:03:02]} Qxe7 {[%emt 0:00:01]} 23. Rxe7 {[%emt 0:00:12]} Kxe7 {[%emt 0:00:04]} 24. Nd2 {[%emt 0:00:15]} Rg8 {[%emt 0:00:42]} 25. Re1 {[%emt 0:00:47]} Kd7 {[%emt 0:00:20]} 26. Rg1 {[%emt 0:02:22]} Ng4 {[%emt 0:00:49]} 27. Nf3 {[%emt 0:01:16]} Re8+ {[%emt 0:00:19]} 28. Kd2 {[%emt 0:00:22]} Nf2 {[%emt 0:00:44]} 29. Re1 {[%emt 0:03:31]} Ne4+ {[%emt 0:00:42]} 30. Kc2 {[%emt 0:01:17]} h6 {[%emt 0:00:55]} 31. Nd2 {[%emt 0:01:00]} Ng5 {[%emt 0:00:02]} 32. Rxe8 {[%emt 0:00:19]} Kxe8 {[%emt 0:00:01]} 33. Kd3 {[%emt 0:00:43]} Ke7 {[%emt 0:00:07]} 34. Ne4 {[%emt 0:00:44]} Ne6 {[%emt 0:00:27]} 35. Ke3 {[%emt 0:01:53]} b6 {[%emt 0:00:07]} 36. g4 {[%emt 0:01:13]} Nc7 {[%emt 0:00:49]} 37. c4 {[%emt 0:02:29]} b5 {[%emt 0:00:28]} 38. Kd4 {[%emt 0:00:19]} h5 {[%emt 0:00:43]} 39. g5 {[%emt 0:00:37]} h4 {[%emt 0:01:28]} 40. c5 {[%emt 0:11:01]} Ke6 {[%emt 0:01:58]} 41. g6 {[%emt 0:31:43]} Kf5 {[%emt 0:01:20]} 42. g7 {[%emt 0:00:00]} Ne6+ {[%emt 0:00:06]} 43. Kd5 {[%emt 0:00:00]} Nxg7 {[%emt 0:00:13]} 44. c6 {[%emt 0:00:00]} Ne6 {[%emt 0:00:21]} 45. Nd6+ {[%emt 0:00:00]} Kg4 {[%emt 0:00:08]} 46. Kxe6 {[%emt 0:00:00]} 1-0

[Event "FRA-ch Open A-D 2018"]
[Site "Nimes"]
[Date "2018.08.21"]
[Round "4"]
[White "Brouard, Gregoire"]
[Black "Verin, Jules"]
[Result "1-0"]
[ECO "A42"]
[WhiteElo "1898"]
[BlackElo "1941"]
[Annotator "NA RC"]
[PlyCount "41"]
[EventDate "2018.08.18"]
[EventType "tourn"]
[EventCountry "FRA"]
[SourceTitle "playchess.com"]
[Source "ChessBase"]
[SourceQuality "1"]
[TimeControl "40/5400+30:1800+30"]

1. d4 {[%emt 0:00:00]} g6 {[%emt 0:00:00]} 2. c4 {[%emt 0:00:00]} Bg7 {[%emt 0:00:00]} 3. Nc3 {[%emt 0:00:00]} d6 {[%emt 0:00:00]} 4. e4 {[%emt 0:00:10]} e5 {[%emt 0:00:00]} 5. Be3 {[%emt 0:07:08]} Nd7 {[%emt 0:11:32]} 6. f4 {[%emt 0:09:36]} exf4 {[%emt 0:13:34]} 7. Bxf4 {[%emt 0:00:21]} Qf6 {[%emt 0:05:36]} 8. Be3 {[%emt 0:01:05]} c5 {[%emt 0:05:50]} 9. Nb5 {[%emt 0:14:38]} cxd4 {[%emt 0:07:08]} 10. Bxd4 {[%emt 0:01:15]} Qh4+ {[%emt 0:01:08]} 11. Bf2 {[%emt 0:00:40]} Qxe4+ {[%emt 0:03:19]} 12. Be2 {[%emt 0:01:02]} Be5 {[%emt 0:08:31]} 13. Nc7+ {[%emt 0:06:44]} Kd8 {[%emt 0:05:16]} 14. Nxa8 {[%emt 0:01:09]} Ngf6 {[%emt 0:02:20]} 15. Nf3 {[%emt 0:05:21]} Re8 {[%emt 0:02:54]} 16. O-O {[%emt 0:05:42]} Ng4 {[%emt 0:08:45]} 17. Nxe5 {[%emt 0:15:48]} Ngxe5 {[%emt 0:01:50]} 18. Qxd6 {[%emt 0:04:34]} b6 {[%emt 0:06:25]} 19. Bf3 {[%emt 0:05:02]} Nxf3+ {[%emt 0:01:21]} 20. gxf3 {[%emt 0:00:05]} Qxa8 {[%emt 0:01:35]} 21. Bh4+ {[%emt 0:00:17]} 1-0

[Event "FRA-ch Open A-D 2018"]
[Site "Nimes"]
[Date "2018.08.21"]
[Round "4"]
[White "Famel, Edouard"]
[Black "Sabatier, Mathis"]
[Result "1/2-1/2"]
[ECO "C44"]
[WhiteElo "1762"]
[BlackElo "1904"]
[Annotator "NA RC"]
[PlyCount "60"]
[EventDate "2018.08.18"]
[EventType "tourn"]
[EventCountry "FRA"]
[SourceTitle "playchess.com"]
[Source "ChessBase"]
[SourceQuality "1"]
[TimeControl "40/5400+30:1800+30"]

1. e4 {[%emt 0:00:00]} e5 {[%emt 0:00:00]} 2. Nf3 {[%emt 0:00:00]} Nc6 {[%emt 0:00:00]} 3. c3 {[%emt 0:00:02]} Nf6 {[%emt 0:00:53]} 4. d4 {[%emt 0:00:12]} exd4 {[%emt 0:01:22]} 5. e5 {[%emt 0:00:12]} Qe7 {[%emt 0:11:15]} 6. cxd4 {[%emt 0:07:03]} d6 {[%emt 0:03:13]} 7. Bb5 {[%emt 0:05:59]} a6 {[%emt 0:13:50]} 8. Bxc6+ {[%emt 0:00:13]} bxc6 {[%emt 0:00:06]} 9. O-O {[%emt 0:00:23]} Nd5 {[%emt 0:05:05]} 10. Re1 {[%emt 0:12:01]} Be6 {[%emt 0:02:42]} 11. Nc3 {[%emt 0:02:53]} Nxc3 {[%emt 0:04:00]} 12. bxc3 {[%emt 0:02:05]} d5 {[%emt 0:00:04]} 13. Qb3 {[%emt 0:00:37]} Qd8 {[%emt 0:07:48]} 14. Qb7 {[%emt 0:07:32]} Kd7 {[%emt 0:02:58]} 15. Ng5 {[%emt 0:04:39]} Be7 {[%emt 0:02:21]} 16. f4 {[%emt 0:02:20]} Bxg5 {[%emt 0:01:58]} 17. fxg5 {[%emt 0:00:01]} Qb8 {[%emt 0:00:45]} 18. Qb3 {[%emt 0:08:42]} Qb5 {[%emt 0:05:42]} 19. Qc2 {[%emt 0:05:21]} Rab8 {[%emt 0:02:55]} 20. Ba3 {[%emt 0:00:32]} g6 {[%emt 0:03:44]} 21. Rf1 {[%emt 0:00:30]} Qc4 {[%emt 0:03:12]} 22. Rf2 {[%emt 0:03:18]} Ke8 {[%emt 0:08:00]} 23. Bb4 {[%emt 0:04:10]} Bf5 {[%emt 0:06:31]} 24. Rxf5 {[%emt 0:03:41]} gxf5 {[%emt 0:04:32]} 25. Qxf5 {[%emt 0:01:03]} Rxb4 {[%emt 0:01:53]} 26. Qc8+ {[%emt 0:00:05]} Ke7 {[%emt 0:00:08]} 27. Qxc7+ {[%emt 0:00:41]} Ke8 {[%emt 0:00:35]} 28. Qc8+ {[%emt 0:00:10]} Ke7 {[%emt 0:00:10]} 29. Qc7+ {[%emt 0:00:03]} Ke8 {[%emt 0:00:04]} 30. Qc8+ {[%emt 0:00:03]} Ke7 1/2-1/2

[Event "FRA-ch Open A-D 2018"]
[Site "Nimes"]
[Date "2018.08.21"]
[Round "4"]
[White "Rasolo, Loick"]
[Black "Cregut, Marian"]
[Result "1/2-1/2"]
[ECO "B40"]
[WhiteElo "1723"]
[BlackElo "1638"]
[Annotator "NA RC"]
[PlyCount "58"]
[EventDate "2018.08.18"]
[EventType "tourn"]
[EventCountry "FRA"]
[SourceTitle "playchess.com"]
[Source "ChessBase"]
[SourceQuality "1"]
[TimeControl "40/5400+30:1800+30"]

1. e4 {[%emt 0:00:00]} c5 {[%emt 0:00:00]} 2. Nf3 {[%emt 0:00:00]} e6 {[%emt 0:00:00]} 3. c3 {[%emt 0:00:11]} d5 {[%emt 0:03:56]} 4. exd5 {[%emt 0:00:05]} exd5 {[%emt 0:00:21]} 5. d4 Nc6 {[%emt 0:01:03]} 6. Be2 {[%emt 0:01:32]} Nf6 {[%emt 0:01:26]} 7. O-O {[%emt 0:00:16]} Bd6 {[%emt 0:00:24]} 8. Bg5 {[%emt 0:01:38]} Be6 {[%emt 0:02:06]} 9. Nbd2 {[%emt 0:05:05]} O-O {[%emt 0:02:04]} 10. dxc5 {[%emt 0:04:02]} Bxc5 {[%emt 0:00:25]} 11. Nb3 {[%emt 0:00:20]} Be7 {[%emt 0:02:29]} 12. Nfd4 {[%emt 0:13:10]} Qd7 {[%emt 0:06:59]} 13. Re1 {[%emt 0:02:46]} Rad8 {[%emt 0:09:27]} 14. Bxf6 {[%emt 0:02:00]} Bxf6 {[%emt 0:01:15]} 15. Nc5 {[%emt 0:01:12]} Qe7 {[%emt 0:01:47]} 16. Ncxe6 {[%emt 0:00:10]} fxe6 {[%emt 0:00:36]} 17. Bg4 {[%emt 0:01:28]} Nxd4 {[%emt 0:02:44]} 18. cxd4 {[%emt 0:00:34]} Rd6 {[%emt 0:00:54]} 19. Rc1 {[%emt 0:06:42]} Qf7 {[%emt 0:03:20]} 20. Rc3 {[%emt 0:04:59]} Re8 {[%emt 0:04:53]} 21. Rce3 {[%emt 0:03:57]} g6 22. Bh3 {[%emt 0:08:57]} Rc6 {[%emt 0:16:07]} 23. g3 {[%emt 0:03:21]} Kg7 {[%emt 0:08:36]} 24. Rc3 Qc7 25. Rxe6 {[%emt 0:34:10]} Rexe6 {[%emt 0:01:35]} 26. Bxe6 {[%emt 0:00:05]} Rxc3 {[%emt 0:00:25]} 27. bxc3 {[%emt 0:02:15]} Qxc3 {[%emt 0:01:52]} 28. Bxd5 {[%emt 0:01:36]} b6 {[%emt 0:01:53]} 29. Bb3 Qxd4 1/2-1/2

[Event "FRA-ch Open A-D 2018"]
[Site "Nimes"]
[Date "2018.08.21"]
[Round "4"]
[White "Silvera, Ruben"]
[Black "Auffray-Bonnet, Gaspard"]
[Result "1-0"]
[ECO "D15"]
[WhiteElo "1688"]
[BlackElo "1736"]
[Annotator "NA RC"]
[PlyCount "105"]
[EventDate "2018.08.18"]
[EventType "tourn"]
[EventCountry "FRA"]
[SourceTitle "playchess.com"]
[Source "ChessBase"]
[SourceQuality "1"]
[TimeControl "40/5400+30:1800+30"]

1. d4 {[%emt 0:00:00]} d5 {[%emt 0:00:00]} 2. c4 {[%emt 0:00:00]} c6 {[%emt 0:00:00]} 3. Nf3 {[%emt 0:00:00]} Nf6 {[%emt 0:00:00]} 4. Nc3 {[%emt 0:00:00]} Bf5 {[%emt 0:00:22]} 5. cxd5 {[%emt 0:00:12]} cxd5 {[%emt 0:00:21]} 6. Qb3 {[%emt 0:00:11]} Qb6 {[%emt 0:01:21]} 7. Nxd5 {[%emt 0:00:18]} Qxb3 {[%emt 0:00:23]} 8. Nxf6+ {[%emt 0:00:18]} exf6 {[%emt 0:00:06]} 9. axb3 {[%emt 0:00:05]} Bc2 {[%emt 0:00:46]} 10. d5 {[%emt 0:16:54]} Bxb3 {[%emt 0:02:56]} 11. e4 {[%emt 0:02:34]} Bc2 {[%emt 0:17:41]} 12. Bb5+ {[%emt 0:00:05]} Kd8 {[%emt 0:04:28]} 13. Nd2 {[%emt 0:00:31]} Bb4 {[%emt 0:03:17]} 14. f3 {[%emt 0:00:11]} f5 {[%emt 0:04:11]} 15. O-O {[%emt 0:02:29]} Nd7 {[%emt 0:04:46]} 16. b3 {[%emt 0:04:17]} Nc5 {[%emt 0:10:08]} 17. Ba3 {[%emt 0:08:14]} Bxa3 {[%emt 0:03:09]} 18. Rxa3 {[%emt 0:00:10]} Bd3 {[%emt 0:04:51]} 19. Bxd3 {[%emt 0:00:12]} Nxd3 {[%emt 0:00:01]} 20. Nc4 {[%emt 0:00:25]} Ke7 {[%emt 0:01:57]} 21. b4 {[%emt 0:13:43]} Rhc8 {[%emt 0:07:44]} 22. Na5 {[%emt 0:09:39]} Nxb4 {[%emt 0:02:51]} 23. Rb1 {[%emt 0:03:56]} Nc2 {[%emt 0:02:46]} 24. Rxb7+ Kf6 {[%emt 0:00:43]} 25. Rd3 {[%emt 0:01:32]} Rc5 {[%emt 0:03:11]} 26. Nb3 {[%emt 0:07:17]} Rc4 {[%emt 0:01:43]} 27. d6 {[%emt 0:00:37]} Nb4 {[%emt 0:05:16]} 28. Rd1 {[%emt 0:04:09]} Nc6 {[%emt 0:04:23]} 29. Rc7 {[%emt 0:04:10]} Rb8 {[%emt 0:03:34]} 30. d7 Rd8 {[%emt 0:00:54]} 31. Rd6+ {[%emt 0:03:23]} Ke7 {[%emt 0:00:13]} 32. Rdxc6 {[%emt 0:01:14]} Rxc6 {[%emt 0:00:31]} 33. Rxc6 {[%emt 0:00:04]} Kxd7 {[%emt 0:01:07]} 34. Ra6 {[%emt 0:00:48]} fxe4 {[%emt 0:00:51]} 35. Rxa7+ {[%emt 0:00:42]} Ke8 {[%emt 0:01:03]} 36. fxe4 {[%emt 0:00:17]} Rd3 {[%emt 0:00:37]} 37. Rb7 {[%emt 0:03:51]} Re3 {[%emt 0:00:36]} 38. Nc5 {[%emt 0:01:07]} Re2 {[%emt 0:00:30]} 39. Kf1 {[%emt 0:01:32]} Rc2 {[%emt 0:00:11]} 40. Nd3 {[%emt 0:01:42]} Rd2 {[%emt 0:02:22]} 41. Ne5 {[%emt 0:30:52]} f6 {[%emt 0:31:02]} 42. Nf3 {[%emt 0:00:27]} Rd7 {[%emt 0:00:03]} 43. Rxd7 {[%emt 0:00:39]} Kxd7 {[%emt 0:00:00]} 44. Ke2 {[%emt 0:00:37]} Ke6 {[%emt 0:00:15]} 45. Ke3 {[%emt 0:00:44]} g6 {[%emt 0:00:24]} 46. Kf4 {[%emt 0:00:26]} h6 {[%emt 0:00:17]} 47. g4 {[%emt 0:01:53]} Ke7 {[%emt 0:00:30]} 48. e5 {[%emt 0:01:22]} fxe5+ {[%emt 0:00:15]} 49. Kxe5 {[%emt 0:00:22]} Kf7 {[%emt 0:00:08]} 50. Nh4 {[%emt 0:00:58]} g5 {[%emt 0:00:42]} 51. Nf5 {[%emt 0:00:12]} Kg6 {[%emt 0:00:05]} 52. Ng3 {[%emt 0:00:19]} Kg7 {[%emt 0:00:09]} 53. Ke4 1-0

[Event "FRA-ch Open A-D 2018"]
[Site "Nimes"]
[Date "2018.08.21"]
[Round "4"]
[White "Saugrain, Jean-Maxime"]
[Black "Alashtar, Aasef"]
[Result "0-1"]
[ECO "A16"]
[WhiteElo "1682"]
[BlackElo "1724"]
[Annotator "NA RC"]
[PlyCount "86"]
[EventDate "2018.08.18"]
[EventType "tourn"]
[EventCountry "FRA"]
[SourceTitle "playchess.com"]
[Source "ChessBase"]
[SourceQuality "1"]
[TimeControl "40/5400+30:1800+30"]

1. c4 {[%emt 0:00:00]} Nf6 {[%emt 0:01:44]} 2. Nc3 {[%emt 0:00:07]} c5 {[%emt 0:00:53]} 3. e3 {[%emt 0:00:36]} g6 {[%emt 0:04:50]} 4. Nf3 {[%emt 0:01:47]} Bg7 {[%emt 0:01:04]} 5. d4 {[%emt 0:00:55]} cxd4 {[%emt 0:01:16]} 6. exd4 {[%emt 0:00:23]} O-O {[%emt 0:00:48]} 7. Be2 {[%emt 0:00:39]} d5 {[%emt 0:04:45]} 8. cxd5 {[%emt 0:04:31]} Nxd5 {[%emt 0:01:00]} 9. O-O {[%emt 0:00:14]} Nc6 {[%emt 0:05:28]} 10. Be3 {[%emt 0:02:47]} Nxe3 {[%emt 0:06:06]} 11. fxe3 {[%emt 0:00:19]} Qb6 {[%emt 0:03:51]} 12. Na4 {[%emt 0:05:15]} Qa5 {[%emt 0:02:37]} 13. Re1 {[%emt 0:00:36]} Rd8 {[%emt 0:05:52]} 14. Rc1 {[%emt 0:00:43]} Rd6 {[%emt 0:06:28]} 15. Rc5 {[%emt 0:07:18]} Qd8 {[%emt 0:00:27]} 16. Qc1 {[%emt 0:01:09]} Bd7 {[%emt 0:13:16]} 17. b3 {[%emt 0:00:30]} b6 {[%emt 0:04:48]} 18. Rc2 {[%emt 0:02:00]} Bh6 {[%emt 0:05:34]} 19. Bf1 {[%emt 0:06:32]} Nxd4 {[%emt 0:03:27]} 20. Nxd4 {[%emt 0:00:11]} Rxd4 {[%emt 0:00:04]} 21. Nb2 {[%emt 0:02:25]} Bf5 {[%emt 0:03:27]} 22. Rc4 {[%emt 0:01:15]} Rxc4 {[%emt 0:02:25]} 23. Qxc4 {[%emt 0:00:55]} Rc8 {[%emt 0:00:49]} 24. Qh4 {[%emt 0:00:27]} Bg7 {[%emt 0:00:27]} 25. Nd1 {[%emt 0:00:49]} Bf6 {[%emt 0:01:16]} 26. Qg3 {[%emt 0:01:08]} Rc1 {[%emt 0:00:47]} 27. e4 {[%emt 0:02:17]} Qd4+ {[%emt 0:04:21]} 28. Ne3 {[%emt 0:00:32]} Rxe1 {[%emt 0:00:27]} 29. Qxe1 {[%emt 0:00:09]} Qxe4 {[%emt 0:01:08]} 30. Qd2 {[%emt 0:03:30]} Bd4 {[%emt 0:01:27]} 31. Kf2 {[%emt 0:00:11]} e5 {[%emt 0:01:38]} 32. h3 {[%emt 0:00:27]} h5 {[%emt 0:00:34]} 33. Bc4 {[%emt 0:01:39]} Qf4+ {[%emt 0:02:41]} 34. Ke2 {[%emt 0:00:16]} Be4 {[%emt 0:00:59]} 35. Bd3 {[%emt 0:03:07]} Bxd3+ {[%emt 0:00:42]} 36. Kxd3 {[%emt 0:00:47]} Qxe3+ {[%emt 0:00:13]} 37. Qxe3 {[%emt 0:00:08]} Bxe3 {[%emt 0:00:09]} 38. Kxe3 {[%emt 0:00:04]} f5 {[%emt 0:00:05]} 39. Kd3 {[%emt 0:01:16]} Kf7 {[%emt 0:00:21]} 40. g3 {[%emt 0:12:12]} g5 {[%emt 0:00:49]} 41. Ke3 {[%emt 0:32:00]} Ke6 {[%emt 0:30:19]} 42. Kf3 {[%emt 0:00:19]} e4+ {[%emt 0:00:32]} 43. Ke2 {[%emt 0:00:19]} Ke5 {[%emt 0:00:01]} 0-1

[Event "FRA-ch Open A-D 2018"]
[Site "Nimes"]
[Date "2018.08.21"]
[Round "4"]
[White "Chemier, Maxime"]
[Black "Lebret, Loriane"]
[Result "1/2-1/2"]
[ECO "B06"]
[WhiteElo "1626"]
[BlackElo "1696"]
[Annotator "NA RC"]
[PlyCount "83"]
[EventDate "2018.08.18"]
[EventType "tourn"]
[EventCountry "FRA"]
[SourceTitle "playchess.com"]
[Source "ChessBase"]
[SourceQuality "1"]
[TimeControl "40/5400+30:1800+30"]

1. e4 {[%emt 0:00:00]} g6 {[%emt 0:00:00]} 2. d4 {[%emt 0:00:27]} Nf6 {[%emt 0:00:00]} 3. Nc3 {[%emt 0:00:47]} d5 {[%emt 0:00:00]} 4. e5 {[%emt 0:01:30]} Ne4 {[%emt 0:00:00]} 5. Nxe4 {[%emt 0:00:24]} dxe4 {[%emt 0:00:00]} 6. Bc4 {[%emt 0:01:36]} c5 {[%emt 0:02:53]} 7. dxc5 {[%emt 0:03:26]} Qa5+ {[%emt 0:01:37]} 8. c3 {[%emt 0:01:20]} Qxc5 {[%emt 0:02:51]} 9. Qd5 {[%emt 0:05:20]} Qxd5 {[%emt 0:07:24]} 10. Bxd5 {[%emt 0:02:57]} Nd7 {[%emt 0:01:30]} 11. e6 {[%emt 0:01:20]} fxe6 {[%emt 0:00:23]} 12. Bxe4 {[%emt 0:00:10]} Nc5 {[%emt 0:03:14]} 13. Bc2 {[%emt 0:03:20]} Bg7 {[%emt 0:03:51]} 14. Bg5 {[%emt 0:05:29]} Bd7 {[%emt 0:04:38]} 15. Ne2 {[%emt 0:04:23]} e5 {[%emt 0:05:55]} 16. Ng3 {[%emt 0:03:54]} Bc6 {[%emt 0:12:46]} 17. O-O {[%emt 0:02:08]} Ne6 {[%emt 0:06:06]} 18. Be3 {[%emt 0:03:53]} Nf4 {[%emt 0:02:40]} 19. f3 {[%emt 0:01:46]} O-O {[%emt 0:13:45]} 20. Rad1 {[%emt 0:05:48]} b6 {[%emt 0:08:53]} 21. Ne4 {[%emt 0:07:47]} Rad8 {[%emt 0:04:16]} 22. Ng5 {[%emt 0:02:51]} Bf6 {[%emt 0:06:25]} 23. Bxf4 {[%emt 0:05:02]} Rxd1 {[%emt 0:02:31]} 24. Rxd1 {[%emt 0:00:34]} exf4 {[%emt 0:00:25]} 25. Ne6 {[%emt 0:00:13]} Rc8 {[%emt 0:04:12]} 26. Nxf4 {[%emt 0:01:43]} e5 {[%emt 0:01:08]} 27. Nd3 {[%emt 0:02:43]} e4 {[%emt 0:00:56]} 28. fxe4 {[%emt 0:00:49]} Bxe4 {[%emt 0:00:01]} 29. Bb3+ {[%emt 0:00:48]} Kg7 {[%emt 0:00:21]} 30. Nf4 {[%emt 0:00:25]} Bf5 {[%emt 0:01:17]} 31. h3 {[%emt 0:03:54]} Rd8 {[%emt 0:02:41]} 32. Re1 {[%emt 0:01:26]} Rd2 {[%emt 0:00:35]} 33. Re2 {[%emt 0:01:14]} Rxe2 {[%emt 0:00:04]} 34. Nxe2 {[%emt 0:00:06]} Bg5 {[%emt 0:01:57]} 35. Bc4 {[%emt 0:03:18]} Be3+ {[%emt 0:00:57]} 36. Kf1 {[%emt 0:00:35]} Be4 {[%emt 0:00:20]} 37. a4 {[%emt 0:03:43]} Bc6 {[%emt 0:00:39]} 38. Bb5 {[%emt 0:00:42]} Bxb5 {[%emt 0:00:39]} 39. axb5 {[%emt 0:00:06]} Kf6 {[%emt 0:00:13]} 40. Ng3 {[%emt 0:03:25]} Ke5 {[%emt 0:01:03]} 41. Ke2 {[%emt 0:39:47]} Bf4 {[%emt 0:07:40]} 42. Nf1 {[%emt 0:00:00]} 1/2-1/2

[Event "FRA-ch Open A-D 2018"]
[Site "Nimes"]
[Date "2018.08.21"]
[Round "4"]
[White "Borrini, Rodrigue"]
[Black "Leccia, Thomas"]
[Result "1/2-1/2"]
[ECO "A43"]
[WhiteElo "1481"]
[BlackElo "1408"]
[Annotator "NA RC"]
[PlyCount "63"]
[EventDate "2018.08.18"]
[EventType "tourn"]
[EventCountry "FRA"]
[SourceTitle "playchess.com"]
[Source "ChessBase"]
[SourceQuality "1"]
[TimeControl "40/5400+30:1800+30"]

1. d4 {[%emt 0:00:00]} c5 {[%emt 0:00:00]} 2. c3 {[%emt 0:00:58]} e6 {[%emt 0:01:38]} 3. Bf4 {[%emt 0:00:26]} Nc6 {[%emt 0:00:31]} 4. e3 {[%emt 0:00:21]} d5 {[%emt 0:02:01]} 5. Nd2 {[%emt 0:00:51]} Nf6 {[%emt 0:02:30]} 6. Ngf3 {[%emt 0:00:19]} Be7 {[%emt 0:09:01]} 7. Bd3 {[%emt 0:00:53]} Bd7 {[%emt 0:09:53]} 8. Ne5 {[%emt 0:05:36]} Nxe5 {[%emt 0:02:45]} 9. dxe5 {[%emt 0:00:37]} Ng8 {[%emt 0:03:51]} 10. Bg3 {[%emt 0:03:00]} c4 {[%emt 0:06:51]} 11. Bc2 {[%emt 0:06:00]} h5 {[%emt 0:04:00]} 12. h3 {[%emt 0:04:11]} Bc5 {[%emt 0:03:52]} 13. Nf3 {[%emt 0:11:27]} Ne7 {[%emt 0:08:12]} 14. Nd4 {[%emt 0:05:13]} Nc6 {[%emt 0:04:10]} 15. Qd2 {[%emt 0:11:52]} a6 {[%emt 0:13:18]} 16. f4 {[%emt 0:08:39]} Qe7 {[%emt 0:07:04]} 17. Qf2 {[%emt 0:10:25]} h4 {[%emt 0:01:10]} 18. Bh2 {[%emt 0:01:42]} O-O-O {[%emt 0:03:02]} 19. b3 {[%emt 0:03:58]} f6 {[%emt 0:01:32]} 20. Qe2 {[%emt 0:02:39]} fxe5 {[%emt 0:01:30]} 21. fxe5 {[%emt 0:00:53]} cxb3 22. axb3 {[%emt 0:00:52]} Qg5 {[%emt 0:04:32]} 23. Bf4 {[%emt 0:05:04]} Nxd4 {[%emt 0:02:22]} 24. Bxg5 {[%emt 0:08:37]} Nxe2 25. Bxd8 {[%emt 0:00:20]} Ng3 {[%emt 0:00:15]} 26. Rg1 {[%emt 0:00:45]} Kxd8 {[%emt 0:00:21]} 27. Kd2 {[%emt 0:00:28]} Rf8 {[%emt 0:00:41]} 28. Rae1 {[%emt 0:00:25]} Rf2+ {[%emt 0:00:32]} 29. Kd1 {[%emt 0:00:56]} Be8 {[%emt 0:00:10]} 30. e4 {[%emt 0:01:08]} Bh5+ {[%emt 0:00:07]} 31. Kc1 {[%emt 0:00:48]} Ne2+ {[%emt 0:00:07]} 32. Kd1 1/2-1/2

[Event "FRA-ch Open A-D 2018"]
[Site "Nimes"]
[Date "2018.08.21"]
[Round "4"]
[White "Bernard, Thomas"]
[Black "Blondel, Jean-Michel"]
[Result "1/2-1/2"]
[ECO "B01"]
[WhiteElo "1466"]
[BlackElo "1402"]
[Annotator "NA RC"]
[PlyCount "42"]
[EventDate "2018.08.18"]
[EventType "tourn"]
[EventCountry "FRA"]
[SourceTitle "playchess.com"]
[Source "ChessBase"]
[SourceQuality "1"]
[TimeControl "40/5400+30:1800+30"]

1. e4 {[%emt 0:00:00]} d5 {[%emt 0:00:00]} 2. exd5 {[%emt 0:00:00]} Qxd5 {[%emt 0:00:00]} 3. Nc3 {[%emt 0:00:00]} Qd6 {[%emt 0:00:22]} 4. d4 {[%emt 0:02:38]} Nf6 {[%emt 0:00:35]} 5. Nf3 {[%emt 0:00:52]} a6 {[%emt 0:01:54]} 6. Bc4 {[%emt 0:03:04]} b5 {[%emt 0:00:55]} 7. Bb3 {[%emt 0:01:57]} c5 {[%emt 0:02:00]} 8. dxc5 {[%emt 0:04:05]} Qxd1+ {[%emt 0:00:17]} 9. Nxd1 {[%emt 0:00:16]} e6 {[%emt 0:00:22]} 10. Be3 {[%emt 0:10:42]} Bb7 {[%emt 0:00:42]} 11. Nc3 {[%emt 0:10:34]} Nbd7 {[%emt 0:00:43]} 12. a4 {[%emt 0:11:38]} b4 {[%emt 0:00:27]} 13. Na2 {[%emt 0:01:54]} a5 {[%emt 0:00:28]} 14. Bc4 {[%emt 0:02:00]} Bxc5 {[%emt 0:01:18]} 15. Bxc5 {[%emt 0:00:23]} Nxc5 {[%emt 0:00:12]} 16. Bb5+ {[%emt 0:00:23]} Ke7 {[%emt 0:02:05]} 17. O-O-O {[%emt 0:00:59]} Rad8 {[%emt 0:05:39]} 18. Ne5 {[%emt 0:01:15]} Rxd1+ {[%emt 0:07:44]} 19. Rxd1 {[%emt 0:00:11]} Bd5 {[%emt 0:28:33]} 20. Nc6+ {[%emt 0:12:35]} Bxc6 {[%emt 0:07:04]} 21. Bxc6 {[%emt 0:02:40]} Rd8 1/2-1/2